[Event "Live Chess"]
[Site "Chess.com"]
[Date "2023.05.20"]
[Round "-"]
[White "LozzaLoaf"]
[Black "Inglaterra"]
[Result "0-1"]
[WhiteElo "241"]
[BlackElo "2061"]
[TimeControl "300"]
[EndTime "13:12:44 PDT"]
[Termination "Inglaterra won by checkmate"]

1. d4 {[%clk 0:04:59.1]} 1... d5 {[%clk 0:04:59.1]} 2. f3 {[%clk 0:04:56.3]}
2... Nf6 {[%clk 0:04:53.8]} 3. e4 {[%clk 0:04:55.4]} 3... dxe4 {[%clk
0:04:52.1]} 4. fxe4 {[%clk 0:04:53.4]} 4... Nxe4 {[%clk 0:04:51.7]} 5. Nc3
{[%clk 0:04:44.4]} 5... Nxc3 {[%clk 0:04:49.4]} 6. bxc3 {[%clk 0:04:43.3]} 6...
e5 {[%clk 0:04:47.4]} 7. dxe5 {[%clk 0:04:42]} 7... Qh4+ {[%clk 0:04:45.6]} 8.
g3 {[%clk 0:04:40.1]} 8... Qe4+ {[%clk 0:04:44.3]} 9. Be2 {[%clk 0:04:38.1]}
9... Qxh1 {[%clk 0:04:42.3]} 10. Kf1 {[%clk 0:04:34.7]} 10... Bc5 {[%clk
0:04:36.6]} 11. Be3 {[%clk 0:04:28.7]} 11... Bxe3 {[%clk 0:04:35]} 12. Bb5+
{[%clk 0:04:15.1]} 12... c6 {[%clk 0:04:31.3]} 13. Ba4 {[%clk 0:04:12.2]} 13...
Qxg1+ {[%clk 0:04:27.6]} 14. Ke2 {[%clk 0:04:10.6]} 14... Bg4+ {[%clk
0:04:24.8]} 15. Kd3 {[%clk 0:04:07.2]} 15... Bxd1 {[%clk 0:04:23.7]} 16. Rxd1
{[%clk 0:04:01.6]} 16... Qxd1+ {[%clk 0:04:20.4]} 17. Kxe3 {[%clk 0:04:00.3]}
17... O-O {[%clk 0:04:16.3]} 18. g4 {[%clk 0:03:56.2]} 18... Re8 {[%clk
0:04:15.2]} 19. h4 {[%clk 0:03:54.6]} 19... Rxe5+ {[%clk 0:04:13.9]} 20. Kf4
{[%clk 0:03:53.9]} 20... Qe2 {[%clk 0:04:11.4]} 21. g5 {[%clk 0:03:50.8]} 21...
Re4+ {[%clk 0:04:07.6]} 22. Kf5 {[%clk 0:03:49.3]} 22... Qf3# {[%clk 0:04:06.2]}
0-1

[Event "Live Chess"]
[Site "Chess.com"]
[Date "2023.05.20"]
[Round "-"]
[White "WelshTiger"]
[Black "LL220284LL"]
[Result "1-0"]
[WhiteElo "2413"]
[BlackElo "2393"]
[TimeControl "300"]
[EndTime "13:12:59 PDT"]
[Termination "WelshTiger won by resignation"]

1. e4 {[%clk 0:04:55]} 1... d5 {[%clk 0:04:57.5]} 2. exd5 {[%clk 0:04:49.2]}
2... Qxd5 {[%clk 0:04:57.4]} 3. Nc3 {[%clk 0:04:48.3]} 3... Qa5 {[%clk
0:04:56.3]} 4. d4 {[%clk 0:04:47.1]} 4... c6 {[%clk 0:04:55.3]} 5. Nf3 {[%clk
0:04:46.3]} 5... Nf6 {[%clk 0:04:54.2]} 6. Ne5 {[%clk 0:04:45.7]} 6... Nbd7
{[%clk 0:04:52]} 7. Nc4 {[%clk 0:04:44.2]} 7... Qc7 {[%clk 0:04:50.5]} 8. g3
{[%clk 0:04:43.6]} 8... Nb6 {[%clk 0:04:47.9]} 9. Bf4 {[%clk 0:04:42.6]} 9...
Qd8 {[%clk 0:04:46.1]} 10. Nxb6 {[%clk 0:04:41.6]} 10... Qxb6 {[%clk 0:04:44.8]}
11. Rb1 {[%clk 0:04:39.2]} 11... g6 {[%clk 0:04:43.4]} 12. Bg2 {[%clk
0:04:37.6]} 12... Bg7 {[%clk 0:04:42.3]} 13. O-O {[%clk 0:04:36.9]} 13... O-O
{[%clk 0:04:40.7]} 14. Be5 {[%clk 0:04:32]} 14... Rd8 {[%clk 0:04:39.1]} 15. Qe2
{[%clk 0:04:25.8]} 15... Bg4 {[%clk 0:04:35.3]} 16. Bf3 {[%clk 0:04:22.9]} 16...
Bxf3 {[%clk 0:04:30.8]} 17. Qxf3 {[%clk 0:04:22.4]} 17... Nd5 {[%clk 0:04:29.4]}
18. Bxg7 {[%clk 0:04:21.1]} 18... Kxg7 {[%clk 0:04:27.9]} 19. Ne2 {[%clk
0:04:19.7]} 19... Nf6 {[%clk 0:04:16.3]} 20. c3 {[%clk 0:04:17.6]} 20... Rd5
{[%clk 0:04:13.6]} 21. Nf4 {[%clk 0:04:15.8]} 21... Rd7 {[%clk 0:04:11.8]} 22.
Rfe1 {[%clk 0:04:12.6]} 22... Rad8 {[%clk 0:04:11.1]} 23. b4 {[%clk 0:04:07.4]}
23... Qb5 {[%clk 0:04:08.7]} 24. Re3 {[%clk 0:03:58.1]} 24... Qc4 {[%clk
0:03:58.9]} 25. Rbe1 {[%clk 0:03:56.5]} 25... e6 {[%clk 0:03:55.7]} 26. a4
{[%clk 0:03:55.2]} 26... Nd5 {[%clk 0:03:52.7]} 27. Nxd5 {[%clk 0:03:53.9]}
27... Rxd5 {[%clk 0:03:52]} 28. h4 {[%clk 0:03:46.7]} 28... Rf5 {[%clk
0:03:50.8]} 29. Qe4 {[%clk 0:03:40.6]} 29... Qd5 {[%clk 0:03:49.3]} 30. a5
{[%clk 0:03:35.5]} 30... h5 {[%clk 0:03:45.3]} 31. Qb1 {[%clk 0:03:28.8]} 31...
Rf3 {[%clk 0:03:39.7]} 32. Rxf3 {[%clk 0:03:26.8]} 32... Qxf3 {[%clk 0:03:39.6]}
33. Re3 {[%clk 0:03:26.3]} 33... Qd5 {[%clk 0:03:38.2]} 34. Re5 {[%clk
0:03:24.8]} 34... Qc4 {[%clk 0:03:36.5]} 35. Rc5 {[%clk 0:03:23.3]} 35... Qd3
{[%clk 0:03:31.8]} 36. Qxd3 {[%clk 0:03:19.3]} 1-0

[Event "Live Chess"]
[Site "Chess.com"]
[Date "2023.05.20"]
[Round "-"]
[White "omisoc"]
[Black "djw60"]
[Result "1-0"]
[WhiteElo "2158"]
[BlackElo "2110"]
[TimeControl "300"]
[EndTime "13:13:04 PDT"]
[Termination "omisoc won by resignation"]

1. d4 {[%clk 0:04:57.5]} 1... Nf6 {[%clk 0:04:58.1]} 2. c4 {[%clk 0:04:55.2]}
2... e6 {[%clk 0:04:56.4]} 3. Nf3 {[%clk 0:04:53.4]} 3... d5 {[%clk 0:04:52.3]}
4. e3 {[%clk 0:04:51.7]} 4... Bd6 {[%clk 0:04:49.5]} 5. Nc3 {[%clk 0:04:50.4]}
5... O-O {[%clk 0:04:47.9]} 6. b3 {[%clk 0:04:47.7]} 6... b6 {[%clk 0:04:46.4]}
7. Bd3 {[%clk 0:04:45.6]} 7... Bb7 {[%clk 0:04:44.9]} 8. O-O {[%clk 0:04:44.3]}
8... Ne4 {[%clk 0:04:43.2]} 9. Bb2 {[%clk 0:04:38.3]} 9... a6 {[%clk 0:04:39.7]}
10. Ne5 {[%clk 0:04:35.7]} 10... Nd7 {[%clk 0:04:36]} 11. Ne2 {[%clk 0:04:34.5]}
11... f6 {[%clk 0:04:28.3]} 12. Nxd7 {[%clk 0:04:32.5]} 12... Qxd7 {[%clk
0:04:27.1]} 13. f3 {[%clk 0:04:30.6]} 13... Ng5 {[%clk 0:04:21.5]} 14. Qc2
{[%clk 0:04:25.2]} 14... e5 {[%clk 0:03:30.8]} 15. cxd5 {[%clk 0:03:26.3]} 15...
Bxd5 {[%clk 0:02:57.5]} 16. h4 {[%clk 0:03:15.2]} 16... Nh3+ {[%clk 0:02:43.6]}
17. gxh3 {[%clk 0:03:10.9]} 17... Qxh3 {[%clk 0:02:42]} 18. Be4 {[%clk
0:03:07.7]} 18... c6 {[%clk 0:02:31.9]} 19. Rf2 {[%clk 0:03:01]} 19... exd4
{[%clk 0:02:15.7]} 20. Nxd4 {[%clk 0:02:45.1]} 20... Rae8 {[%clk 0:02:09.5]} 21.
Bxd5+ {[%clk 0:02:41.8]} 21... cxd5 {[%clk 0:02:08.1]} 22. Qf5 {[%clk
0:02:37.6]} 22... Qxh4 {[%clk 0:01:45.5]} 23. Qxd5+ {[%clk 0:02:33.4]} 23... Kh8
{[%clk 0:01:42.9]} 24. Qxd6 {[%clk 0:02:31.5]} 1-0

[Event "Live Chess"]
[Site "Chess.com"]
[Date "2023.05.20"]
[Round "-"]
[White "Tushinskiy"]
[Black "Bob2pen"]
[Result "1/2-1/2"]
[WhiteElo "2102"]
[BlackElo "1835"]
[TimeControl "300"]
[EndTime "13:13:09 PDT"]
[Termination "Game drawn by repetition"]

1. d4 {[%clk 0:04:58.2]} 1... Nf6 {[%clk 0:04:57.8]} 2. c3 {[%clk 0:04:58.1]}
2... g6 {[%clk 0:04:56.2]} 3. Nf3 {[%clk 0:04:58]} 3... Bg7 {[%clk 0:04:55.4]}
4. Bf4 {[%clk 0:04:49]} 4... O-O {[%clk 0:04:53.5]} 5. Nbd2 {[%clk 0:04:47.9]}
5... d6 {[%clk 0:04:52.2]} 6. e4 {[%clk 0:04:46.5]} 6... Nbd7 {[%clk 0:04:51]}
7. Bg3 {[%clk 0:04:43.1]} 7... Re8 {[%clk 0:04:48.8]} 8. Bc4 {[%clk 0:04:40.8]}
8... e5 {[%clk 0:04:47]} 9. dxe5 {[%clk 0:04:40.7]} 9... Nxe5 {[%clk 0:04:45.6]}
10. Nxe5 {[%clk 0:04:35.1]} 10... dxe5 {[%clk 0:04:44.5]} 11. Qe2 {[%clk
0:04:34.2]} 11... Bd7 {[%clk 0:04:35.4]} 12. O-O {[%clk 0:04:32.5]} 12... Bc6
{[%clk 0:04:34]} 13. Rad1 {[%clk 0:04:25.9]} 13... Qe7 {[%clk 0:04:32.4]} 14. h3
{[%clk 0:04:22.5]} 14... Rad8 {[%clk 0:04:28.6]} 15. Bb3 {[%clk 0:04:20.9]}
15... Nh5 {[%clk 0:04:21.6]} 16. Kh2 {[%clk 0:04:18.8]} 16... Nxg3 {[%clk
0:04:19.8]} 17. fxg3 {[%clk 0:04:17.5]} 17... Rf8 {[%clk 0:04:16.3]} 18. Nf3
{[%clk 0:04:11.3]} 18... Kh8 {[%clk 0:04:12.7]} 19. Rxd8 {[%clk 0:04:06.4]}
19... Rxd8 {[%clk 0:04:03.5]} 20. Qc4 {[%clk 0:04:00.5]} 20... f6 {[%clk
0:03:55.7]} 21. Qe2 {[%clk 0:03:52.3]} 21... Be8 {[%clk 0:03:52.9]} 22. Qc4
{[%clk 0:03:48.1]} 22... Bc6 {[%clk 0:03:48]} 23. Rd1 {[%clk 0:03:42.9]} 23...
h5 {[%clk 0:03:23.6]} 24. Rxd8+ {[%clk 0:03:34.6]} 24... Qxd8 {[%clk 0:03:22.1]}
25. Nh4 {[%clk 0:03:33.6]} 25... g5 {[%clk 0:03:05.3]} 26. Nf5 {[%clk
0:03:28.6]} 26... Qf8 {[%clk 0:02:57]} 27. Qe2 {[%clk 0:03:19]} 27... Be8 {[%clk
0:02:53.8]} 28. Bd5 {[%clk 0:03:02.7]} 28... c6 {[%clk 0:02:49.1]} 29. Bb3
{[%clk 0:02:53.4]} 29... Bg6 {[%clk 0:02:47.3]} 30. Qd3 {[%clk 0:02:35.9]} 30...
Bxf5 {[%clk 0:02:41.6]} 31. exf5 {[%clk 0:02:35.8]} 31... Qe7 {[%clk 0:02:40.6]}
32. Qc4 {[%clk 0:02:31.6]} 32... Qf8 {[%clk 0:02:36.6]} 33. Qe6 {[%clk
0:02:30.2]} 33... h4 {[%clk 0:02:30.7]} 34. gxh4 {[%clk 0:02:27.8]} 34... gxh4
{[%clk 0:02:29.2]} 35. Qd7 {[%clk 0:02:26]} 35... Bh6 {[%clk 0:02:26.7]} 36. Be6
{[%clk 0:02:19.7]} 36... Bf4+ {[%clk 0:02:25]} 37. Kh1 {[%clk 0:02:17.8]} 37...
Qg7 {[%clk 0:02:16.5]} 38. Qe8+ {[%clk 0:02:08.2]} 38... Kh7 {[%clk 0:02:12.9]}
39. Qh5+ {[%clk 0:02:00.6]} 39... Qh6 {[%clk 0:02:05.9]} 40. Qg4 {[%clk
0:01:50.9]} 40... Qg5 {[%clk 0:02:00.5]} 41. Qd1 {[%clk 0:01:48.6]} 41... Bd2
{[%clk 0:01:43.6]} 42. Bc4 {[%clk 0:01:27.5]} 42... Kg7 {[%clk 0:01:32.8]} 43.
Be2 {[%clk 0:01:11]} 43... Qe3 {[%clk 0:01:23.2]} 44. Qf1 {[%clk 0:01:09]} 44...
Qf4 {[%clk 0:01:21]} 45. Qxf4 {[%clk 0:01:01]} 45... Bxf4 {[%clk 0:01:19.2]} 46.
Kg1 {[%clk 0:01:00.2]} 46... Kf7 {[%clk 0:01:17.9]} 47. Kf2 {[%clk 0:00:59.3]}
47... Ke7 {[%clk 0:01:17.1]} 48. Kf3 {[%clk 0:00:58.7]} 48... Kd6 {[%clk
0:01:14.4]} 49. Ke4 {[%clk 0:00:57.9]} 49... b5 {[%clk 0:01:11.3]} 50. Bh5
{[%clk 0:00:55.9]} 50... a5 {[%clk 0:01:09.7]} 51. Bf7 {[%clk 0:00:54.7]} 51...
c5 {[%clk 0:01:08.1]} 52. Be8 {[%clk 0:00:49.3]} 52... b4 {[%clk 0:01:06.7]} 53.
cxb4 {[%clk 0:00:48.3]} 53... cxb4 {[%clk 0:01:05.5]} 54. Kd3 {[%clk 0:00:40]}
54... Kc5 {[%clk 0:01:03.8]} 55. b3 {[%clk 0:00:38]} 55... Bg3 {[%clk
0:01:01.4]} 56. Bf7 {[%clk 0:00:36.1]} 56... Bf4 {[%clk 0:01:00.2]} 57. Ke4
{[%clk 0:00:33.9]} 57... Bg3 {[%clk 0:00:54.3]} 58. Bc4 {[%clk 0:00:29.4]} 58...
Bf4 {[%clk 0:00:52.5]} 59. Be6 {[%clk 0:00:26.8]} 59... Bg3 {[%clk 0:00:50.6]}
60. Kf3 {[%clk 0:00:23.9]} 60... Kd4 {[%clk 0:00:43.9]} 61. Bc4 {[%clk
0:00:18.3]} 61... e4+ {[%clk 0:00:39.8]} 62. Kg4 {[%clk 0:00:17.2]} 62... Ke5
{[%clk 0:00:35.8]} 63. Be2 {[%clk 0:00:15.5]} 63... Be1 {[%clk 0:00:34]} 64. Bc4
{[%clk 0:00:14.7]} 64... Bg3 {[%clk 0:00:29.7]} 65. Be2 {[%clk 0:00:14]} 65...
Kd4 {[%clk 0:00:28.4]} 66. Bc4 {[%clk 0:00:13]} 66... Ke3 {[%clk 0:00:27.3]} 67.
Bd5 {[%clk 0:00:11.6]} 67... Kd4 {[%clk 0:00:25.9]} 68. Bc4 {[%clk 0:00:10.8]}
1/2-1/2

[Event "Live Chess"]
[Site "Chess.com"]
[Date "2023.05.20"]
[Round "-"]
[White "AdamOwls"]
[Black "toog"]
[Result "0-1"]
[WhiteElo "1932"]
[BlackElo "2614"]
[TimeControl "300"]
[EndTime "13:13:15 PDT"]
[Termination "toog won by resignation"]

1. e4 {[%clk 0:04:59.1]} 1... e5 {[%clk 0:04:58.1]} 2. Nf3 {[%clk 0:04:57.8]}
2... d6 {[%clk 0:04:57.6]} 3. d4 {[%clk 0:04:56]} 3... exd4 {[%clk 0:04:57.5]}
4. Nxd4 {[%clk 0:04:54.6]} 4... Nf6 {[%clk 0:04:57.1]} 5. Bd3 {[%clk 0:04:52.8]}
5... Be7 {[%clk 0:04:55.6]} 6. O-O {[%clk 0:04:51.5]} 6... O-O {[%clk
0:04:54.8]} 7. c4 {[%clk 0:04:48.8]} 7... Nc6 {[%clk 0:04:52.6]} 8. Nxc6 {[%clk
0:04:44.1]} 8... bxc6 {[%clk 0:04:52.5]} 9. Nc3 {[%clk 0:04:42]} 9... Re8 {[%clk
0:04:51]} 10. Re1 {[%clk 0:04:40.9]} 10... Rb8 {[%clk 0:04:49.3]} 11. b3 {[%clk
0:04:39.1]} 11... Nd7 {[%clk 0:04:48.3]} 12. Bb2 {[%clk 0:04:37.8]} 12... Bf6
{[%clk 0:04:46.8]} 13. Rc1 {[%clk 0:04:36.5]} 13... Nc5 {[%clk 0:04:44.7]} 14.
Bb1 {[%clk 0:04:33.9]} 14... a5 {[%clk 0:04:43.8]} 15. Qc2 {[%clk 0:04:31.4]}
15... g6 {[%clk 0:04:41.2]} 16. f4 {[%clk 0:04:15.4]} 16... Bg7 {[%clk
0:04:37.7]} 17. Rcd1 {[%clk 0:04:09]} 17... Qh4 {[%clk 0:04:33.4]} 18. Qf2
{[%clk 0:04:01]} 18... Qxf2+ {[%clk 0:04:30.1]} 19. Kxf2 {[%clk 0:04:00.9]}
19... a4 {[%clk 0:04:26.6]} 20. Nxa4 {[%clk 0:03:48.2]} 20... Nxa4 {[%clk
0:04:25.2]} 21. Bxg7 {[%clk 0:03:46.7]} 21... Kxg7 {[%clk 0:04:25.1]} 22. bxa4
{[%clk 0:03:44.8]} 22... Be6 {[%clk 0:04:24.3]} 23. Bd3 {[%clk 0:03:40.7]} 23...
Rb4 {[%clk 0:04:20.6]} 24. Rb1 {[%clk 0:03:34.5]} 24... Rxa4 {[%clk 0:04:17.6]}
25. Rb7 {[%clk 0:03:26.3]} 25... Rxa2+ {[%clk 0:04:13.6]} 26. Re2 {[%clk
0:03:25.2]} 26... Rxe2+ {[%clk 0:04:11.6]} 27. Kxe2 {[%clk 0:03:19]} 27... Re7
{[%clk 0:04:08.9]} 28. Kf3 {[%clk 0:03:17.6]} 28... f5 {[%clk 0:04:06.8]} 29.
exf5 {[%clk 0:03:14.1]} 29... Bxf5 {[%clk 0:04:05.8]} 30. Bxf5 {[%clk
0:03:10.8]} 30... gxf5 {[%clk 0:04:05.7]} 31. h3 {[%clk 0:03:10.2]} 31... Kg6
{[%clk 0:04:04]} 32. g4 {[%clk 0:03:09.3]} 32... h5 {[%clk 0:04:01.7]} 33. g5
{[%clk 0:03:00.2]} 33... d5 {[%clk 0:04:00.4]} 34. cxd5 {[%clk 0:02:43.2]} 34...
cxd5 {[%clk 0:04:00.3]} 35. Rb5 {[%clk 0:02:41.3]} 35... d4 {[%clk 0:03:57]} 36.
Rd5 {[%clk 0:02:34.3]} 36... Re3+ {[%clk 0:03:54.5]} 37. Kf2 {[%clk 0:02:32.1]}
37... Rd3 {[%clk 0:03:40.2]} 38. Ke2 {[%clk 0:02:17.7]} 38... Re3+ {[%clk
0:03:36.6]} 39. Kf2 {[%clk 0:02:16.5]} 39... Rxh3 {[%clk 0:03:27.6]} 40. Rxd4
{[%clk 0:02:14.8]} 40... Rc3 {[%clk 0:03:16.3]} 41. Rd5 {[%clk 0:02:07.5]} 41...
h4 {[%clk 0:03:15.2]} 42. Kg2 {[%clk 0:02:05.6]} 42... c5 {[%clk 0:03:01.5]} 43.
Rd6+ {[%clk 0:01:58.4]} 43... Kh5 {[%clk 0:03:00.3]} 44. Rc6 {[%clk 0:01:53.3]}
44... Kg4 {[%clk 0:02:58.2]} 45. g6 {[%clk 0:01:51.7]} 45... Kxf4 {[%clk
0:02:57.4]} 46. Kh2 {[%clk 0:01:46.9]} 46... Rg3 {[%clk 0:02:54.7]} 47. g7
{[%clk 0:01:42]} 47... Rxg7 {[%clk 0:02:53.2]} 48. Rxc5 {[%clk 0:01:41.3]} 48...
Kg4 {[%clk 0:02:52]} 49. Rc4+ {[%clk 0:01:40.2]} 49... f4 {[%clk 0:02:51.1]} 50.
Rc2 {[%clk 0:01:39.1]} 50... Ra7 {[%clk 0:02:48]} 51. Rg2+ {[%clk 0:01:38]}
51... Kf3 {[%clk 0:02:47]} 52. Rb2 {[%clk 0:01:32.8]} 52... Re7 {[%clk 0:02:44]}
53. Kg1 {[%clk 0:01:23]} 53... Re1+ {[%clk 0:02:42]} 54. Kh2 {[%clk 0:01:21.6]}
54... Re2+ {[%clk 0:02:41.9]} 55. Rxe2 {[%clk 0:01:19.8]} 55... Kxe2 {[%clk
0:02:41.8]} 0-1

[Event "Live Chess"]
[Site "Chess.com"]
[Date "2023.05.20"]
[Round "-"]
[White "onemoretime1975"]
[Black "bristolunichess"]
[Result "0-1"]
[WhiteElo "1879"]
[BlackElo "1811"]
[TimeControl "300"]
[EndTime "13:13:26 PDT"]
[Termination "bristolunichess won by resignation"]

1. e4 {[%clk 0:04:55.2]} 1... c5 {[%clk 0:04:58.4]} 2. Nf3 {[%clk 0:04:53.6]}
2... Nc6 {[%clk 0:04:55.9]} 3. d3 {[%clk 0:04:50.3]} 3... g6 {[%clk 0:04:53.7]}
4. g3 {[%clk 0:04:49]} 4... Bg7 {[%clk 0:04:52.6]} 5. Bg2 {[%clk 0:04:47.7]}
5... e6 {[%clk 0:04:51.9]} 6. c3 {[%clk 0:04:45.3]} 6... Nge7 {[%clk 0:04:51.3]}
7. O-O {[%clk 0:04:43.8]} 7... d5 {[%clk 0:04:44.8]} 8. exd5 {[%clk 0:04:40]}
8... exd5 {[%clk 0:04:43.8]} 9. d4 {[%clk 0:04:38.8]} 9... cxd4 {[%clk
0:04:41.2]} 10. Nxd4 {[%clk 0:04:37.3]} 10... O-O {[%clk 0:04:36.7]} 11. Be3
{[%clk 0:04:29.6]} 11... Be6 {[%clk 0:04:20.8]} 12. Re1 {[%clk 0:04:25.4]} 12...
Qd7 {[%clk 0:04:15.2]} 13. Na3 {[%clk 0:04:19.5]} 13... Rad8 {[%clk 0:04:05.1]}
14. Nac2 {[%clk 0:04:10]} 14... Nf5 {[%clk 0:04:02.8]} 15. Nxf5 {[%clk 0:04:07]}
15... Bxf5 {[%clk 0:04:01.2]} 16. Nd4 {[%clk 0:04:05.5]} 16... Be4 {[%clk
0:03:46.7]} 17. Bg5 {[%clk 0:03:45.4]} 17... Nxd4 {[%clk 0:03:30.7]} 18. cxd4
{[%clk 0:03:41.4]} 18... Rde8 {[%clk 0:03:20.7]} 19. Bxe4 {[%clk 0:03:21.9]}
19... dxe4 {[%clk 0:03:14.2]} 20. Be3 {[%clk 0:03:14.2]} 20... Qd5 {[%clk
0:03:11.6]} 21. Qa4 {[%clk 0:03:03.1]} 21... a6 {[%clk 0:03:08.1]} 22. b3 {[%clk
0:02:58.7]} 22... Rc8 {[%clk 0:03:03.6]} 23. Rac1 {[%clk 0:02:55.5]} 23... Rfd8
{[%clk 0:02:58]} 24. Rc5 {[%clk 0:02:21.7]} 24... Rxc5 {[%clk 0:02:34.5]} 25.
dxc5 {[%clk 0:02:19.2]} 25... Qd3 {[%clk 0:02:34]} 26. Qb4 {[%clk 0:02:07.2]}
26... Bc3 {[%clk 0:02:30.5]} 0-1

[Event "Live Chess"]
[Site "Chess.com"]
[Date "2023.05.20"]
[Round "-"]
[White "therealab0ne"]
[Black "apl_trainer"]
[Result "0-1"]
[WhiteElo "704"]
[BlackElo "1736"]
[TimeControl "300"]
[EndTime "13:13:29 PDT"]
[Termination "apl_trainer won on time"]

1. e4 {[%clk 0:04:59]} 1... c5 {[%clk 0:04:58.7]} 2. Nc3 {[%clk 0:04:57.3]} 2...
e6 {[%clk 0:04:57.1]} 3. Nge2 {[%clk 0:04:51.3]} 3... Nc6 {[%clk 0:04:54.8]} 4.
g3 {[%clk 0:04:49.9]} 4... d5 {[%clk 0:04:47.6]} 5. Bg2 {[%clk 0:04:36.2]} 5...
d4 {[%clk 0:04:42.2]} 6. Nb1 {[%clk 0:04:20.6]} 6... e5 {[%clk 0:04:41]} 7. O-O
{[%clk 0:04:18.3]} 7... Nf6 {[%clk 0:04:38.9]} 8. d3 {[%clk 0:04:15.2]} 8... Be7
{[%clk 0:04:37.1]} 9. Nd2 {[%clk 0:04:13.6]} 9... O-O {[%clk 0:04:35]} 10. Nf3
{[%clk 0:04:11.9]} 10... Ne8 {[%clk 0:04:23.1]} 11. h3 {[%clk 0:03:23.5]} 11...
Nd6 {[%clk 0:04:18.4]} 12. g4 {[%clk 0:03:18.1]} 12... c4 {[%clk 0:04:13.3]} 13.
dxc4 {[%clk 0:03:05.1]} 13... Nxc4 {[%clk 0:04:08.2]} 14. Ng3 {[%clk 0:02:42.7]}
14... Re8 {[%clk 0:04:04]} 15. Nf5 {[%clk 0:02:33.1]} 15... Bf8 {[%clk
0:04:02.3]} 16. Bg5 {[%clk 0:02:09.9]} 16... f6 {[%clk 0:03:58.5]} 17. Bh6
{[%clk 0:01:59.6]} 17... gxh6 {[%clk 0:03:53.8]} 18. c3 {[%clk 0:01:40.6]} 18...
Kh8 {[%clk 0:03:44.5]} 19. cxd4 {[%clk 0:00:59.4]} 19... Bxf5 {[%clk 0:03:34.8]}
20. gxf5 {[%clk 0:00:41.6]} 20... Nxd4 {[%clk 0:03:29.1]} 21. Nxd4 {[%clk
0:00:39]} 21... Qxd4 {[%clk 0:03:20.7]} 22. Qxd4 {[%clk 0:00:28.5]} 22... exd4
{[%clk 0:03:19.2]} 23. Rac1 {[%clk 0:00:19.5]} 23... Rac8 {[%clk 0:03:15.4]} 24.
e5 {[%clk 0:00:17.9]} 24... Nxe5 {[%clk 0:03:07]} 25. Bxb7 {[%clk 0:00:14.5]}
25... Rb8 {[%clk 0:03:00.7]} 26. Bd5 {[%clk 0:00:10.3]} 26... Rxb2 {[%clk
0:02:56.2]} 27. Rc7 {[%clk 0:00:09.2]} 27... a5 {[%clk 0:02:33.4]} 28. Rfc1
{[%clk 0:00:07.8]} 28... Rbb8 {[%clk 0:02:21.9]} 29. Ra7 {[%clk 0:00:05.6]}
29... Rec8 {[%clk 0:02:15.2]} 30. Rxc8 {[%clk 0:00:04.3]} 30... Rxc8 {[%clk
0:02:13.9]} 31. Bb7 {[%clk 0:00:03.7]} 31... Rb8 {[%clk 0:02:06.9]} 32. Kg2
{[%clk 0:00:02.1]} 32... d3 {[%clk 0:02:03.6]} 33. Kg3 {[%clk 0:00:00.5]} 33...
d2 {[%clk 0:01:57.1]} 0-1

[Event "Live Chess"]
[Site "Chess.com"]
[Date "2023.05.20"]
[Round "-"]
[White "defenderalist"]
[Black "diana21strabt"]
[Result "0-1"]
[WhiteElo "1582"]
[BlackElo "1683"]
[TimeControl "300"]
[EndTime "13:13:29 PDT"]
[Termination "diana21strabt won by resignation"]

1. e4 {[%clk 0:04:59.5]} 1... d5 {[%clk 0:04:52.2]} 2. exd5 {[%clk 0:04:58.1]}
2... Qxd5 {[%clk 0:04:51.1]} 3. Nc3 {[%clk 0:04:57.5]} 3... Qa5 {[%clk
0:04:48.8]} 4. Bc4 {[%clk 0:04:54.6]} 4... Nf6 {[%clk 0:04:47.9]} 5. Nf3 {[%clk
0:04:52.6]} 5... Bg4 {[%clk 0:04:46.9]} 6. h3 {[%clk 0:04:50.6]} 6... Bh5 {[%clk
0:04:45.8]} 7. g4 {[%clk 0:04:48.3]} 7... Bg6 {[%clk 0:04:44.8]} 8. d3 {[%clk
0:04:41.8]} 8... Nc6 {[%clk 0:04:43.8]} 9. Bd2 {[%clk 0:04:40.2]} 9... O-O-O
{[%clk 0:04:33.1]} 10. Qe2 {[%clk 0:04:34.3]} 10... e5 {[%clk 0:04:29.3]} 11.
O-O-O {[%clk 0:04:26.8]} 11... Bb4 {[%clk 0:04:27.4]} 12. a3 {[%clk 0:04:18.8]}
12... Bxa3 {[%clk 0:04:24.8]} 13. bxa3 {[%clk 0:04:12.3]} 13... Qxa3+ {[%clk
0:04:22.8]} 14. Kb1 {[%clk 0:04:08.4]} 14... Nb4 {[%clk 0:04:14.1]} 15. Bb3
{[%clk 0:04:03.1]} 15... Nxd3 {[%clk 0:04:00.3]} 16. cxd3 {[%clk 0:02:58.9]}
16... Bxd3+ {[%clk 0:03:57.2]} 17. Qxd3 {[%clk 0:02:56.7]} 17... Qxb3+ {[%clk
0:03:45.5]} 18. Kc1 {[%clk 0:02:44.3]} 18... Rxd3 {[%clk 0:03:43.9]} 0-1

[Event "Live Chess"]
[Site "Chess.com"]
[Date "2023.05.20"]
[Round "-"]
[White "chessfiction"]
[Black "ACx04"]
[Result "1-0"]
[WhiteElo "2429"]
[BlackElo "422"]
[TimeControl "300"]
[EndTime "13:13:42 PDT"]
[Termination "chessfiction won by checkmate"]

1. e4 {[%clk 0:04:59.4]} 1... e5 {[%clk 0:04:58.6]} 2. d4 {[%clk 0:04:58.7]}
2... exd4 {[%clk 0:04:57.4]} 3. c3 {[%clk 0:04:58.3]} 3... dxc3 {[%clk
0:04:56.2]} 4. Bc4 {[%clk 0:04:57.7]} 4... cxb2 {[%clk 0:04:53.4]} 5. Bxb2
{[%clk 0:04:57.6]} 5... Nf6 {[%clk 0:04:49.5]} 6. Qb3 {[%clk 0:04:55.9]} 6...
Nxe4 {[%clk 0:04:48]} 7. Bxf7+ {[%clk 0:04:54.2]} 7... Ke7 {[%clk 0:04:46.2]} 8.
Nf3 {[%clk 0:04:52.7]} 8... Nd6 {[%clk 0:04:41.7]} 9. Bh5 {[%clk 0:04:50]} 9...
g6 {[%clk 0:04:39.9]} 10. Bxh8 {[%clk 0:04:47.1]} 10... Nc6 {[%clk 0:04:35.9]}
11. O-O {[%clk 0:04:46.4]} 11... a6 {[%clk 0:04:31]} 12. Re1+ {[%clk 0:04:46.3]}
12... Ne5 {[%clk 0:04:10.1]} 13. Rxe5# {[%clk 0:04:43.8]} 1-0